[Event "Czech Extraliga 2023-24"]
[Site "Czech Republic"]
[Date "2024.02.10"]
[Round "7.7"]
[White "Slovak, Kilian"]
[Black "Gnojek, Petr"]
[Result "0-1"]
[ECO "B10"]
[WhiteElo "2296"]
[BlackElo "2428"]
[Annotator "TA"]
[PlyCount "56"]
[EventDate "2023.10.14"]
[EventCountry "CZE"]
[SourceTitle "playchess.com"]
[Source "ChessBase"]
[SourceQuality "1"]
[TimeControl "40/5400+30:1800+30"]

{[%evp 13,56,0,-11,3,13,16,13,-250,-241,-281,-281,-252,-191,-320,-256,-313,-305,-299,-317,-399,-383,-440,-431,-620,-603,-606,-626,-743,-745,-1025,-1024,-973,-957,-863,-744,-733,-714,-714,-558,-711,-575,-1112,-964,-29989,-29990]} 1. e4 {[%emt 0:00:04]} c6 {[%emt 0:00:23]} 2. c4 {[%emt 0:01:28]} d5 {[%emt 0:03:49]} 3. cxd5 {[%emt 0:00:10]} cxd5 {[%emt 0:00:04]} 4. exd5 {[%emt 0:00:15]} Nf6 {[%emt 0:01:13]} 5. Qa4+ {[%emt 0:00:07]} Nbd7 {[%emt 0:03:33]} 6. Nc3 {[%emt 0:00:14]} g6 {[%emt 0:00:39]} 7. Nf3 {[%emt 0:01:23]} Bg7 {[%emt 0:00:05]} 8. Bc4 {[%emt 0:00:22]} O-O {[%emt 0:00:20]} 9. d3 {[%emt 0:00:36]} a6 {[%emt 0:02:13] Hoping for ...b5.} 10. O-O $2 {[%emt 0:03:06][%mdl 8192] [#]} (10. Qa3 $11 {and White is okay.}) 10... b5 $1 $19 {[%emt 0:02:08]} 11. Qc2 {[%emt 0:39:30]} bxc4 {[%emt 0:00:10]} 12. dxc4 {[%emt 0:00:05]} Nb6 {[%emt 0:02:11]} 13. Qe2 {[%emt 0:11:41]} (13. b3 {might work better.}) 13... Bg4 {[%emt 0:01:19]} 14. Be3 {[%emt 0:02:04]} Bxf3 {[%emt 0:02:58]} 15. gxf3 {[%emt 0:00:02]} Rc8 {[%emt 0:00:12]} 16. Bxb6 {[%emt 0:06:03]} Qxb6 {[%emt 0:00:06]} 17. Rac1 {[%emt 0:00:11]} Nh5 {[%emt 0:09:35]} 18. b3 {[%emt 0:03:34]} (18. Qe4 $142) 18... Bxc3 {[%emt 0:02:36]} 19. Rxc3 {[%emt 0:29:05]} Qf6 {[%emt 0:00:05]} 20. Rfc1 {[%emt 0:00:00]} Nf4 {[%emt 0:00:20]} 21. Qe3 {[%emt 0:00:00]} Qg5+ {[%emt 0:01:35]} 22. Kf1 {[%emt 0:00:00]} Rfd8 {[%emt 0:00:18] White must now prevent ...e6.} 23. Rd1 {[%emt 0:00:00]} e6 {[%emt 0:00:11] Strongly threatening ...Qh4.} 24. Rd4 {[%emt 0:00:00]} Qg2+ {[%emt 0:01:59]} 25. Ke1 {[%emt 0:00:00]} Qg1+ {[%emt 0:00:07]} 26. Kd2 {[%emt 0:00:00]} e5 {[%emt 0:00:06]} 27. Re4 {[%emt 0:00:00]} Qa1 {[%emt 0:01:21][%cal Of4d5] ( -> ...Nxd5!)} (27... Qxh2 $2 28. Rxe5 Nh3 29. Qd4 $19) 28. Rc1 {[%emt 0:00:00] [#]} Rxd5+ $1 {[%emt 0:00:07][%mdl 512] White did not feel at home in the position after the opening.   Weighted Error Value: White=1.42/Black=0.23 (precise) .  Loses game:     	White=1     	---        Mistake:       	White=2     	---        Inaccurate:     	White=2     	---        OK:         	White=1     	Black=6      Strong:       	---       	Black=1} 0-1

[Event "Czech Extraliga 2023-24"]
[Site "Czech Republic"]
[Date "2024.02.10"]
[Round "7.7"]
[White "Studnicka, Tomas"]
[Black "Movsesian, Julia"]
[Result "1/2-1/2"]
[ECO "E05"]
[WhiteElo "2276"]
[BlackElo "2257"]
[Annotator "NA RC"]
[PlyCount "36"]
[EventDate "2023.10.14"]
[EventCountry "CZE"]
[SourceTitle "playchess.com"]
[Source "ChessBase"]
[SourceQuality "1"]
[TimeControl "40/5400+30:1800+30"]

1. c4 d5 2. Nf3 {[%emt 0:00:36]} e6 {[%emt 1:31:30]} 3. g3 Nf6 4. Bg2 Be7 5. O-O O-O 6. d4 dxc4 7. Qa4 a6 8. Qxc4 b5 9. Qc2 Bb7 10. Bf4 Nc6 11. Rd1 Nb4 12. Qc1 Rc8 13. Nc3 Nbd5 14. Ne5 c5 15. Nxd5 Bxd5 16. Bxd5 Nxd5 17. dxc5 Rxc5 18. Qd2 Nxf4 {[%emt 0:00:00]} 1/2-1/2

[Event "Czech Extraliga 2023-24"]
[Site "Czech Republic"]
[Date "2024.02.10"]
[Round "7.8"]
[White "Mica, Marek"]
[Black "Warchol, Kamil"]
[Result "1-0"]
[ECO "E11"]
[WhiteElo "2364"]
[BlackElo "2152"]
[Annotator "RC"]
[PlyCount "81"]
[EventDate "2023.10.14"]
[EventCountry "CZE"]
[SourceTitle "playchess.com"]
[Source "ChessBase"]
[SourceQuality "1"]
[TimeControl "40/5400+30:1800+30"]

1. Nf3 {[%emt 0:00:08]} d5 {[%emt 0:00:33]} 2. d4 {[%emt 0:00:16]} Nf6 {[%emt 0:00:40]} 3. c4 {[%emt 0:00:36]} e6 {[%emt 0:00:18]} 4. g3 {[%emt 0:01:03]} Bb4+ {[%emt 0:01:11]} 5. Bd2 {[%emt 0:00:33]} Be7 {[%emt 0:01:32]} 6. Bg2 {[%emt 0:00:37]} O-O {[%emt 0:01:17]} 7. Qc2 {[%emt 0:00:38]} c6 {[%emt 0:01:35]} 8. Nc3 {[%emt 0:06:29]} Nbd7 {[%emt 0:08:22]} 9. Rd1 {[%emt 0:23:33]} dxc4 {[%emt 0:14:01]} 10. h4 {[%emt 0:15:34]} Re8 {[%emt 0:09:38]} 11. h5 {[%emt 0:03:22]} h6 {[%emt 0:03:11]} 12. g4 {[%emt 0:13:25]} Nh7 {[%emt 0:14:46]} 13. Ne5 {[%emt 0:03:20]} Ndf8 {[%emt 0:03:11]} 14. Bf4 {[%emt 0:04:16]} Bd6 {[%emt 0:07:00]} 15. Qc1 {[%emt 0:01:08]} Ng5 {[%emt 0:04:29]} 16. Nxc4 {[%emt 0:03:12]} Bxf4 {[%emt 0:02:01]} 17. Qxf4 {[%emt 0:00:16]} Nd7 {[%emt 0:00:43]} 18. e4 {[%emt 0:03:15]} Qe7 {[%emt 0:07:22]} 19. Qd6 {[%emt 0:01:27]} f6 {[%emt 0:02:02]} 20. Qxe7 {[%emt 0:00:44]} Rxe7 {[%emt 0:00:03]} 21. f4 {[%emt 0:00:57]} Nf7 {[%emt 0:00:18]} 22. e5 {[%emt 0:01:09]} Nb6 {[%emt 0:01:13]} 23. Nxb6 {[%emt 0:08:24]} axb6 {[%emt 0:00:07]} 24. O-O {[%emt 0:01:15]} Bd7 {[%emt 0:02:44]} 25. a3 {[%emt 0:00:16]} Rd8 {[%emt 0:03:19]} 26. Na4 {[%emt 0:02:07]} c5 {[%emt 0:03:15]} 27. Nxb6 {[%emt 0:02:05]} Bb5 {[%emt 0:03:52]} 28. exf6 {[%emt 0:00:28]} gxf6 {[%emt 0:01:18]} 29. Rfe1 {[%emt 0:01:53]} Kf8 {[%emt 0:01:28]} 30. dxc5 {[%emt 0:00:12]} Rxd1 {[%emt 0:00:21]} 31. Rxd1 {[%emt 0:00:32]} Be2 {[%emt 0:00:11]} 32. Rd2 {[%emt 0:00:42]} Bxg4 {[%emt 0:00:34]} 33. Nd7+ {[%emt 0:00:57]} Kg7 {[%emt 0:00:02]} 34. Bxb7 {[%emt 0:00:46]} e5 {[%emt 0:00:34]} 35. c6 {[%emt 0:00:22]} Bxd7 {[%emt 0:02:32]} 36. Rxd7 {[%emt 0:00:41]} Rxd7 {[%emt 0:00:21]} 37. cxd7 {[%emt 0:00:06]} exf4 {[%emt 0:00:28]} 38. a4 {[%emt 0:00:12]} Kf8 {[%emt 0:00:41]} 39. a5 {[%emt 0:00:10]} Ke7 {[%emt 0:00:16]} 40. a6 {[%emt 0:00:06]} Nd6 {[%emt 0:00:12]} 41. a7 {[%emt 0:30:25]} 1-0

[Event "Czech Extraliga 2023-24"]
[Site "Czech Republic"]
[Date "2024.02.10"]
[Round "7.8"]
[White "Simek, Petr"]
[Black "Konopka, Michal"]
[Result "1-0"]
[ECO "B03"]
[WhiteElo "2298"]
[BlackElo "2346"]
[Annotator "TA"]
[PlyCount "55"]
[EventDate "2023.10.14"]
[EventCountry "CZE"]
[SourceTitle "playchess.com"]
[Source "ChessBase"]
[SourceQuality "1"]
[TimeControl "40/5400+30:1800+30"]

{[%evp 27,55,30,36,29,44,52,45,32,68,57,136,100,147,139,187,168,165,160,271,281,284,281,281,273,385,378,438,407,1110,1099]} 1. e4 {[%emt 0:00:02][%cal Be2e4,Be4e5][%mdl 32]} Nf6 {[%emt 0:04:21][%cal Bg8f6,Bf6d5,Bd5b6][%mdl 32]} 2. e5 {[%emt 0:00:08]} Nd5 {[%emt 0:00:06]} 3. d4 {[%emt 0:00:06]} d6 {[%emt 0:00:07]} 4. c4 {[%emt 0:00:06]} Nb6 {[%emt 0:00:22]} 5. f4 {[%emt 0:00:06]} Nc6 {[%emt 0:03:29]} 6. Be3 {[%emt 0:27:42]} dxe5 {[%emt 0:08:13]} 7. fxe5 {[%emt 0:00:33]} Bf5 {[%emt 0:00:42]} 8. Nc3 {[%emt 0:00:17]} e6 {[%emt 0:00:55]} 9. Nf3 {[%emt 0:00:18]} Be7 {[%emt 0:03:02]} 10. Be2 {[%emt 0:00:36]} O-O {[%emt 0:00:41]} 11. O-O {[%emt 0:00:13]} f6 {[%emt 0:00:34]} 12. exf6 {[%emt 0:00:22]} Bxf6 {[%emt 0:00:19]} 13. Qd2 {[%emt 0:01:13]} Qe7 {[%emt 0:08:22]} 14. Rad1 {[%emt 0:00:22]} Rad8 {[%emt 0:02:59]} 15. h3 {[%emt 0:26:04]} h6 {[%emt 0:14:13]} 16. Kh1 {[%emt 0:09:01]} Rd7 {[%emt 0:16:39]} 17. Qc1 {[%emt 0:01:28] White is slightly better.} Rfd8 {[%emt 0:03:57][%cal Og8h8]} 18. d5 $1 {[%emt 0:02:38]} Ne5 {[%emt 0:11:18]} (18... exd5 $14 19. cxd5 Nxd5 20. Nxd5 Rxd5) 19. b3 {[%emt 0:02:08]} Nxf3 {[%emt 0:04:47]} (19... exd5 $2 20. Nxe5 Qxe5 21. Bd4 $18) ({Black should try} 19... c5) 20. Bxf3 $16 {[%emt 0:00:55]} (20. Rxf3 Bh7 $16) 20... Kh8 {[%emt 0:06:12]} (20... Qb4 $16 21. Ne4 Bxe4 22. Bxe4 Qe7 (22... exd5 $2 {too greedy.} 23. Bf5 $18)) 21. Ne4 {[%emt 0:07:41]} Bxe4 {[%emt 0:01:17]} 22. Bxe4 {[%emt 0:00:05] Threatens to win with Bb1.} Bg5 {[%emt 0:05:42]} (22... exd5 $16 23. Bf5 Rd6) 23. Bxg5 $18 {[%emt 0:00:38]} Qxg5 {[%emt 0:00:23]} 24. dxe6 {[%emt 0:01:16]} Rxd1 {[%emt 0:02:23]} 25. Rxd1 {[%emt 0:00:04] [#] aiming for Qxg5.} Qxc1 {[%emt 0:00:30]} (25... Nc8 {was called for.} 26. Bxb7 Rxd1+ 27. Qxd1 Nd6) 26. Rxc1 {[%emt 0:00:01][%cal Oe6e7] Strongly threatening e7!} Re8 {[%emt 0:00:08]} 27. Rf1 {[%emt 0:02:16][%cal Oe4g6] And now Bg6! would win.} (27. Bxb7 Rxe6 28. Rf1 Re7 $18) 27... c5 {[%emt 0:01:02]} (27... g5 $142 28. Rf6 (28. Bxb7 Rxe6 29. Rf7 c5 $18) 28... h5 29. Bxb7 (29. c5 Nc8 $18) 29... Kg8) 28. Bg6 {[%emt 0:00:23] White took control after the opening.   Weighted Error Value: White=0.07 (flawless) /Black=0.47.  Mistake:       	---       	Black=6      Inaccurate:     	---       	Black=1      OK:         	White=3     	Black=2      Best:        	White=1     	---        Strong:       	White=1     	---} 1-0

[Event "Czech Extraliga 2023-24"]
[Site "Czech Republic"]
[Date "2024.02.10"]
[Round "7.8"]
[White "Obsivac, Josef"]
[Black "Cerveny, Martin"]
[Result "1/2-1/2"]
[ECO "D11"]
[WhiteElo "2283"]
[BlackElo "2382"]
[Annotator "RC"]
[PlyCount "214"]
[EventDate "2023.10.14"]
[EventCountry "CZE"]
[SourceTitle "playchess.com"]
[Source "ChessBase"]
[SourceQuality "1"]
[TimeControl "40/5400+30:1800+30"]

1. d4 {[%emt 0:00:03]} d5 {[%emt 0:00:39]} 2. c4 {[%emt 0:00:30]} c6 {[%emt 0:00:22]} 3. Nf3 {[%emt 0:00:13]} Nf6 {[%emt 0:00:06]} 4. e3 {[%emt 0:00:28]} Bg4 {[%emt 0:01:27]} 5. Qb3 {[%emt 0:00:37]} Qb6 {[%emt 0:02:42]} 6. Nc3 {[%emt 0:00:57]} Bxf3 {[%emt 0:01:13]} 7. gxf3 {[%emt 0:00:19]} Qxb3 {[%emt 0:02:58]} 8. axb3 {[%emt 0:00:03]} e6 {[%emt 0:02:30]} 9. c5 {[%emt 0:13:01]} e5 {[%emt 0:08:39]} 10. b4 {[%emt 0:06:52]} exd4 {[%emt 0:00:57]} 11. exd4 {[%emt 0:00:02]} Be7 {[%emt 0:01:11]} 12. Be3 {[%emt 0:03:29]} O-O {[%emt 0:01:03]} 13. Be2 {[%emt 0:03:39]} Ne8 {[%emt 0:06:30]} 14. b5 {[%emt 0:03:47]} Nc7 {[%emt 0:01:43]} 15. O-O {[%emt 0:04:11]} a6 {[%emt 0:07:45]} 16. bxc6 {[%emt 0:08:03]} Nxc6 {[%emt 0:01:27]} 17. Ra4 {[%emt 0:08:02]} Rad8 {[%emt 0:05:15]} 18. Rd1 {[%emt 0:12:47]} Rfe8 {[%emt 0:17:31]} 19. f4 {[%emt 0:03:47]} Bf6 {[%emt 0:03:17]} 20. Bf3 {[%emt 0:00:57]} h6 {[%emt 0:00:35]} 21. Kh1 {[%emt 0:05:35]} Kh8 {[%emt 0:01:57]} 22. Bh5 {[%emt 0:02:11]} g6 {[%emt 0:02:17]} 23. Bf3 {[%emt 0:00:12]} Kh7 {[%emt 0:00:06]} 24. Rd2 {[%emt 0:04:39]} g5 {[%emt 0:03:57]} 25. f5 {[%emt 0:02:46]} Kg7 {[%emt 0:01:47]} 26. Rd3 {[%emt 0:01:19]} Ne7 {[%emt 0:02:56]} 27. Rb4 {[%emt 0:01:15]} Rb8 {[%emt 0:00:07]} 28. Rb6 {[%emt 0:01:23]} Red8 {[%emt 0:01:01]} 29. Ne2 {[%emt 0:03:26]} Nxf5 {[%emt 0:03:39]} 30. Bg4 {[%emt 0:00:26]} Ne7 {[%emt 0:03:05]} 31. Ng3 {[%emt 0:02:34]} Nc6 {[%emt 0:00:12]} 32. Bd2 {[%emt 0:01:54]} Kf8 {[%emt 0:02:22]} 33. Nf5 {[%emt 0:01:01]} Nb5 {[%emt 0:01:39]} 34. Bc3 {[%emt 0:01:05]} Re8 {[%emt 0:03:19]} 35. Rh3 {[%emt 0:02:56]} Bg7 {[%emt 0:01:34]} 36. Nxg7 {[%emt 0:00:44]} Kxg7 {[%emt 0:00:02]} 37. Bd7 {[%emt 0:00:11]} Rh8 {[%emt 0:06:10]} 38. Bxc6 {[%emt 0:00:22]} bxc6 {[%emt 0:00:02]} 39. Rxc6 {[%emt 0:00:48]} a5 {[%emt 0:00:29]} 40. Ra6 {[%emt 0:01:23]} Ra8 {[%emt 0:01:09]} 41. Rxa5 {[%emt 0:17:09]} Rxa5 {[%emt 0:09:14]} 42. Bxa5 {[%emt 0:00:02]} Kg6 {[%emt 0:00:12]} 43. Re3 {[%emt 0:04:34]} Ra8 {[%emt 0:00:31]} 44. Bc3 {[%emt 0:00:28]} Ra4 {[%emt 0:00:57]} 45. Re5 {[%emt 0:03:55]} Nxd4 {[%emt 0:03:09]} 46. Rxd5 {[%emt 0:00:30]} Ne2 {[%emt 0:00:53]} 47. Bd2 {[%emt 0:04:31]} g4 {[%emt 0:08:32]} 48. Kg2 {[%emt 0:01:27]} Nd4 {[%emt 0:05:47]} 49. b4 {[%emt 0:01:39]} Nf3 {[%emt 0:00:25]} 50. Bc3 {[%emt 0:01:10]} Ra3 {[%emt 0:00:33]} 51. Be5 {[%emt 0:01:08]} Rb3 {[%emt 0:04:51]} 52. c6 {[%emt 0:00:40]} Rxb4 {[%emt 0:02:20]} 53. Rc5 {[%emt 0:00:23]} Rb1 {[%emt 0:00:11]} 54. Kg3 {[%emt 0:00:22]} Nxe5 {[%emt 0:00:12]} 55. c7 {[%emt 0:01:03]} Rg1+ {[%emt 0:00:15]} 56. Kf4 {[%emt 0:00:18]} Nd3+ {[%emt 0:00:04]} 57. Ke3 {[%emt 0:00:20]} Nxc5 {[%emt 0:00:05]} 58. c8=Q {[%emt 0:00:15]} Ne6 {[%emt 0:00:35]} 59. Qg8+ {[%emt 0:00:45]} Ng7 {[%emt 0:00:16]} 60. Ke2 {[%emt 0:00:52]} Rb1 {[%emt 0:00:42]} 61. Qa8 {[%emt 0:00:25]} Rb6 {[%emt 0:00:24]} 62. Qa2 {[%emt 0:00:37]} Nf5 {[%emt 0:00:52]} 63. Qc2 {[%emt 0:00:29]} h5 {[%emt 0:00:54]} 64. f3 {[%emt 0:00:34]} Rb3 {[%emt 0:02:20]} 65. Qc6+ {[%emt 0:00:34]} Kg5 {[%emt 0:00:17]} 66. Qc1+ {[%emt 0:00:05]} Re3+ {[%emt 0:00:59]} 67. Kf2 {[%emt 0:00:28]} gxf3 {[%emt 0:00:40]} 68. Qd2 {[%emt 0:01:13]} Kg4 {[%emt 0:01:23]} 69. Qb4+ {[%emt 0:00:03]} Kg5 {[%emt 0:00:18]} 70. h4+ {[%emt 0:00:32]} Kg6 {[%emt 0:00:37]} 71. Qb6+ {[%emt 0:00:39]} Re6 {[%emt 0:00:24]} 72. Qd8 {[%emt 0:00:15]} Rf6 {[%emt 0:00:33]} 73. Qg8+ {[%emt 0:00:34]} Ng7 {[%emt 0:00:01]} 74. Qd8 {[%emt 0:00:41]} Rf5 {[%emt 0:00:27]} 75. Qb8 {[%emt 0:00:34]} Kh7 {[%emt 0:00:44]} 76. Qb1 {[%emt 0:00:14]} Kg6 {[%emt 0:00:06]} 77. Qb8 {[%emt 0:00:04]} Rf6 {[%emt 0:00:27]} 78. Qg8 {[%emt 0:00:32]} Rf4 {[%emt 0:00:17]} 79. Qd8 {[%emt 0:00:50]} f6 {[%emt 0:00:14]} 80. Qd3+ {[%emt 0:01:04]} Nf5 {[%emt 0:00:16]} 81. Qd8 {[%emt 0:00:13]} Nxh4 {[%emt 0:01:05]} 82. Qe8+ {[%emt 0:00:48]} Kg5 {[%emt 0:00:10]} 83. Qg8+ {[%emt 0:00:28]} Ng6 {[%emt 0:00:24]} 84. Qd5+ {[%emt 0:00:04]} Rf5 {[%emt 0:00:28]} 85. Qd8 {[%emt 0:00:54]} h4 {[%emt 0:00:40]} 86. Qc7 {[%emt 0:00:04]} Rf4 {[%emt 0:00:17]} 87. Qc8 {[%emt 0:00:21]} Rf5 {[%emt 0:00:25]} 88. Qc7 {[%emt 0:00:12]} Kh6 {[%emt 0:01:10]} 89. Qc1+ {[%emt 0:00:23]} Rf4 {[%emt 0:00:28]} 90. Qc8 {[%emt 0:00:11]} f5 {[%emt 0:00:38]} 91. Qc1 {[%emt 0:00:48]} h3 {[%emt 0:00:31]} 92. Qh1 {[%emt 0:00:43]} Rh4 {[%emt 0:00:09]} 93. Qh2 {[%emt 0:00:18]} f4 {[%emt 0:00:28]} 94. Kxf3 {[%emt 0:00:30]} Kh5 {[%emt 0:00:40]} 95. Ke4 {[%emt 0:00:54]} Kg5 {[%emt 0:00:10]} 96. Qg1+ {[%emt 0:00:54]} Rg4 {[%emt 0:00:02]} 97. Qc5+ {[%emt 0:00:06]} Kh6 {[%emt 0:00:39]} 98. Qc3 {[%emt 0:01:07]} h2 {[%emt 0:01:03]} 99. Qf3 {[%emt 0:00:33]} Rh4 {[%emt 0:00:11]} 100. Qh1 {[%emt 0:00:02]} Rh3 {[%emt 0:01:07]} 101. Kf5 {[%emt 0:00:30]} Rh5+ {[%emt 0:00:55]} 102. Kf6 {[%emt 0:00:09]} Ne5 {[%emt 0:00:37]} 103. Qg2 {[%emt 0:01:22]} Nd7+ {[%emt 0:00:01]} 104. Kf7 {[%emt 0:00:07]} Rf5+ {[%emt 0:01:41]} 105. Ke6 {[%emt 0:00:02]} Rh5 {[%emt 0:00:05]} 106. Kf7 {[%emt 0:00:09]} Ne5+ {[%emt 0:00:12]} 107. Kf6 {[%emt 0:00:03]} Nd7+ {[%emt 0:00:56]} 1/2-1/2

[Event "Czech Extraliga 2023-24"]
[Site "Czech Republic"]
[Date "2024.02.10"]
[Round "7.8"]
[White "Mojzis, Jaroslav"]
[Black "Liska, Jiri"]
[Result "1/2-1/2"]
[ECO "D34"]
[WhiteElo "2068"]
[BlackElo "2285"]
[Annotator "NA RC"]
[PlyCount "153"]
[EventDate "2023.10.14"]
[EventCountry "CZE"]
[SourceTitle "playchess.com"]
[Source "ChessBase"]
[SourceQuality "1"]
[TimeControl "40/5400+30:1800+30"]

1. Nf3 Nf6 2. g3 d5 3. Bg2 c5 4. O-O Nc6 5. d4 e6 6. c4 Be7 7. Nc3 O-O 8. cxd5 exd5 9. Bg5 Be6 10. Rc1 b6 11. Ne5 Nxd4 12. e3 Nf5 13. Nc6 Qd7 14. Nxe7+ Nxe7 15. e4 Rad8 16. exd5 Nexd5 17. Nxd5 Bxd5 18. Bxf6 gxf6 19. Bxd5 Qxd5 20. Qg4+ Kh8 21. Qh4 Qd4 22. Qh6 Rg8 23. Qh5 Qd5 24. Qh4 Qd4 25. Qh5 Qxb2 26. Qxf7 Rg7 27. Qe6 Qe5 28. Qc6 Rc7 29. Qf3 Rcd7 30. Rce1 Qd6 31. Qh5 Qd5 32. Qh4 Qg5 33. Qc4 Rg8 34. Re4 Qd2 35. Qe6 Rf8 36. Rfe1 Rg7 37. Qf5 Qg5 38. Qf3 f5 39. Re5 Rgf7 40. h4 Qg7 41. Rd5 f4 42. g4 c4 43. Rg5 Qf6 44. Ree5 a6 45. a4 Qd6 46. Qc3 Qd3 47. Qe1 Qd6 48. Rd5 Qe7 49. Qc3+ Qf6 50. Qxc4 f3 51. Qd3 Qa1+ 52. Kh2 Qb2 53. Kg3 Qa1 54. Qd4+ Qxd4 55. Rxd4 Rc7 56. Rd3 Rc4 57. a5 bxa5 58. Rxa5 Rg8 59. Rg5 Rxg5 60. hxg5 Kg7 61. Kxf3 a5 62. Rd6 Ra4 63. Kg3 Ra1 64. f4 a4 65. f5 a3 66. Rd7+ Kg8 67. Ra7 a2 68. Kg2 Kf8 69. g6 hxg6 70. fxg6 Kg8 71. g7 Kh7 72. g5 Kg8 73. g6 Rb1 74. Ra8+ Kxg7 75. Ra7+ Kxg6 76. Rxa2 Rb6 77. Kh1 1/2-1/2

[Event "Czech Extraliga 2023-24"]
[Site "Czech Republic"]
[Date "2024.02.11"]
[Round "8.1"]
[White "Saric, Ivan"]
[Black "Kantans, Toms"]
[Result "1-0"]
[ECO "B48"]
[WhiteElo "2689"]
[BlackElo "2475"]
[Annotator "TA"]
[PlyCount "69"]
[EventDate "2023.10.14"]
[EventCountry "CZE"]
[SourceTitle "playchess.com"]
[Source "ChessBase"]
[SourceQuality "1"]
[TimeControl "40/5400+30:1800+30"]

{[%evp 11,69,18,44,4,0,11,14,0,0,0,16,16,86,97,132,127,124,139,145,137,135,146,188,167,165,175,286,279,279,306,330,242,251,258,341,336,363,382,376,372,360,261,453,449,925,468,459,466,926,936,1227,1226,1219,1212,1219,1140,1208,502,484,462]} 1. e4 {[%emt 0:00:04]} c5 {[%emt 0:00:52]} 2. Nf3 {[%emt 0:00:42]} e6 {[%emt 0:01:34]} 3. d4 {[%emt 0:00:28]} cxd4 {[%emt 0:00:07]} 4. Nxd4 {[%emt 0:00:03]} Nc6 {[%emt 0:00:08]} 5. Nc3 {[%emt 0:01:08]} Qc7 {[%emt 0:00:12]} 6. Be3 {[%emt 0:00:26]} a6 {[%emt 0:00:42]} 7. g4 {[%emt 0:00:27][%cal Bg2g4,Bg4g5][%mdl 32]} b5 {[%emt 0:04:57]} 8. Nxc6 {[%emt 0:00:15]} Qxc6 {[%emt 0:01:02]} 9. Qd2 {[%emt 0:00:15] The position is equal.} Bb7 {[%emt 0:12:24]} 10. O-O-O {[%emt 0:02:06]} Nf6 {[%emt 0:05:35][%cal Ob5b4]} 11. f3 {[%emt 0:00:32]} Rd8 {[%emt 0:11:39]} (11... d5 $11 {remains equal.}) 12. g5 $16 {[%emt 0:04:26] White now steadily converts the win.} Nh5 {[%emt 0:00:24] [#]} 13. Bh3 $1 {[%emt 0:00:24]} Bc5 {[%emt 0:12:37]} 14. Bg4 {[%emt 0:02:36] White is more active.} g6 {[%emt 0:00:06]} 15. Bxh5 {[%emt 0:00:54]} gxh5 {[%emt 0:02:46]} 16. Ne2 {[%emt 0:02:55]} Qb6 {[%emt 0:17:56]} 17. Bxc5 {[%emt 0:00:50]} Qxc5 {[%emt 0:00:05]} 18. h4 {[%emt 0:11:23]} h6 {[%emt 0:09:39]} (18... d5 $142) 19. Rhg1 {[%emt 0:05:02] g6 would now be deadly.} hxg5 {[%emt 0:02:53]} 20. Rxg5 {[%emt 0:00:06]} Qf2 {[%emt 0:02:19]} 21. Qc3 {[%emt 0:06:05] Against d5} Rf8 {[%emt 0:00:12]} 22. Ng3 {[%emt 0:02:29][%cal Be2g3,Bg3h5,Bh5f6][%mdl 32]} Rc8 {[%emt 0:04:38]} 23. Qd3 {[%emt 0:00:14]} Rc7 {[%emt 0:03:21]} 24. Nxh5 {[%emt 0:06:10] [#] Strongly threatening Nf6+.} Kd8 {[%emt 0:02:46]} 25. Nf6 {[%emt 0:01:41][%cal Rf6d7]} Qxh4 {[%emt 0:01:36]} 26. Rc5 {[%emt 0:02:57][%cal Rd3d7] White threatens Qxd7+! and mate.} Qf4+ $2 {[%emt 0:02:18]} (26... Rxc5 27. Qxd7#) (26... Qxf6 $2 27. Qd6 Ke8 28. Rxc7 $18 (28. Qxc7 Bc6 $18)) (26... d5 27. exd5 Qg5+ (27... Rxc5 $2 28. dxe6+ $18) 28. Kb1 Rxc5 29. dxe6+ Bd5) 27. Kb1 $18 {[%emt 0:00:10] White is clearly winning.} d5 {[%emt 0:00:39]} (27... Qxf6 $2 {too greedy.} 28. Qd6 (28. Rxc7 Kxc7 29. Qd6+ Kc8 $18) 28... Ke8 29. Rxc7 (29. Qxc7 Rg8 $18)) (27... Kc8 $142 28. Qxd7+ (28. Nxd7 Rg8 $18) 28... Kb8 29. Qxc7+ Qxc7 30. Nd7+ (30. Rxc7 Kxc7 31. b4 Rd8 $11) 30... Qxd7 31. Rxd7 f5 32. exf5 (32. Rcc7 Ba8 $18) 32... Bxf3 33. fxe6 Bg4) 28. Rxc7 {[%emt 0:05:06]} Qxc7 {[%emt 0:00:02]} 29. exd5 {[%emt 0:00:20][%cal Be4d5,Bd5d6,Bd6d7][%mdl 32]} Kc8 {[%emt 0:00:20]} (29... Qc4 $142 30. Qe3 (30. dxe6+ Qxd3 31. Rxd3+ Ke7 $16) 30... Bxd5 31. Qb6+ Qc7 32. Qxa6 Ke7 33. Nxd5+ exd5 34. Qxb5 Qe5 35. Qb4+ (35. Qxd5 Qxd5 36. Rxd5 Rh8 $18) 35... Qd6 36. Re1+ Kd7 37. Qb7+ Kd8) 30. d6 {[%emt 0:00:28]} Qc5 {[%emt 0:00:36]} 31. d7+ {[%emt 0:02:13]} Kd8 {[%emt 0:00:02]} 32. Qd2 {[%emt 0:02:40]} b4 {[%emt 0:01:28]} 33. Qh2 {[%emt 0:03:44]} e5 {[%emt 0:00:12]} 34. Re1 {[%emt 0:02:02]} (34. Qh4 $142 {Intending Nh7+ and mate.} Qe7 35. Qh6) 34... Qd6 {[%emt 0:00:52]} 35. Qxe5 {[%emt 0:00:37] Weighted Error Value: White=0.53/Black=0.34.  Mistake:       	---       	Black=5      Inaccurate:     	White=1     	Black=3      OK:         	White=10    	Black=5      Best:        	White=3     	Black=1      Strong:       	White=1     	---} 1-0